Cogmind - Beta 16 @@@ ROGUE MODE // 2026.01.04 @ 15:56:51 Player: ILikeVoltron Result: Destroyed self via exploding Fusion Modulator Performance ------------- Evolutions (0) 0 Regions Visited (1) 200 Robots Destroyed (16) 80 Value Destroyed (188) 188 Prototype IDs (0) 0 Alien Tech Used (0) 0 Bonus (0) 0 TOTAL SCORE: 468 Bonus ------- None Cogmind --------- Core Integrity 0/250 Matter 282/300 Energy 100/100 System Corruption 0% Temperature Cool (12) Movement Rolling (175) Ox5 Location -10/Materials Parts ------- > --- POWER (1) -------- (None) > --- PROPULSION (2) --- Compact Wheel > --- UTILITY (2) ------ Huge Storage Unit Seismic Detector > --- WEAPON (2) ------- Light Assault Rifle Light Assault Rifle > --- INVENTORY (25) --- Ion Engine Light Ion Engine Aluminum Leg Aluminum Leg Wheel Wheel Wheel High-capacity Matter Pod (55) High-capacity Matter Pod (0) Sensor Array Signal Interpreter Terrain Scanner Improved Terrain Scanner Terrain Scan Processor Weapon Shielding Weapon Shielding Weapon Shielding Hammer Peak State ------------ > --- POWER ------------ Ion Engine > --- PROPULSION ------- Aluminum Leg Aluminum Leg > --- UTILITY ---------- Small Storage Unit Seismic Detector > --- WEAPON ----------- Light Assault Rifle Light Assault Rifle > --- INVENTORY -------- Ion Engine Light Treads Compact Wheel Compact Wheel Sensor Array Improved Terrain Scanner Light Assault Rifle Mining Laser [Rating: 8] Favorites ----------- Power Ion Engine Engine Ion Engine Propulsion Aluminum Leg Leg Aluminum Leg Wheel Compact Wheel Utility Seismic Detector Device Seismic Detector Storage Small Storage Unit Weapon Light Assault Rifle Energy Gun Small Laser Ballistic Gun Light Assault Rifle Impact Weapon Hammer Build | -11 -10 ------- Run | Yrd Mat Slots Evolved . | . . Power . | . . Propulsion . | . . Utility . | . . Weapon . | . . Parts Attached 8 | . 8 Power . | . . Engine . | . . Core . | . . Reactor . | . . Propulsion 2 | . 2 Treads . | . . Leg . | . . Wheel 2 | . 2 Hover . | . . Flight . | . . Utility 2 | . 2 Device 1 | . 1 Storage 1 | . 1 Processor . | . . Hackware . | . . Protection . | . . Artifact . | . . Weapon 4 | . 4 Energy Gun . | . . Energy Cannon . | . . Ballistic Gun 3 | . 3 Ballistic Cannon . | . . Launcher . | . . Special Weapon . | . . Impact Weapon 1 | . 1 Slashing Weapon . | . . Piercing Weapon . | . . Special Melee Weapon . | . . Unidentified Prototypes . | . . Parts Lost . | . . Power . | . . Propulsion . | . . Utility . | . . Weapon . | . . Highest Loss Streak . | . . To Critical Strikes . | . . Average Backups 11 | 7 13 Power 1 | 1 1 Propulsion 3 | 3 3 Utility 4 | . 6 Weapon 1 | 1 1 Tool/Special . | . . Unused Backups 20 | . 20 Power 1 | . 1 Propulsion 7 | . 7 Utility 11 | . 11 Weapon 1 | . 1 Tool/Special . | . . Average Slot Usage (%) 79 | . 79 Engine 7 | . 7 Leg 11 | . 11 Wheel 9 | . 9 Device 12 | . 12 Storage 14 | . 14 Ballistic Gun 21 | . 21 Impact Weapon 2 | . 2 Peak Build Rating 8 | 7 8 Average Rating 6 | 6 7 On Entrance 6 | 6 7 Avg Prop Armor Cover (%) . | . . Naked Turns . | . . Heaviest Build 89 | 12 89 Greatest Support 32 | 20 32 Greatest Overweight (x) 5 | . 5 Average Overweight (x) 1 | . 1 Largest Inventory Capacity 25 | 8 25 Average Capacity 15 | 8 18 Most Carried 20 | 8 20 Average Carried 11 | 7 13 Final Capacity 25 | 8 25 Final Carried 18 | 8 18 Class Distribution -------------------- 100% | Mutant Dominant Class ---------------- Mutant | -10/Materials Resources | -11 -10 ----------- Run | Yrd Mat Matter Collected 409 | 220 189 Remotely . | . . Salvage Created 561 | 233 328 Parts 43 | 22 21 Haulers Intercepted 1 | . 1 Recyclers Shooed . | . . Parts Field Recycled . | . . Retrieved Matter . | . . Parts Self-Destructed . | . . Prevented . | . . Parts Restored . | . . Kills | -11 -10 ------- Run | Yrd Mat Combat Hostiles Destroyed 3 | . 3 Guns 3 | . 3 Classes Destroyed 6 | 3 3 Worker 2 | 2 . Builder 3 | . 3 Tunneler 5 | 5 . Hauler 1 | . 1 Recycler 2 | 1 1 Grunt 3 | . 3 Best Kill Streak 4 | 3 4 Combat Bots Only 2 | . 2 Max Kills in Single Turn 2 | 1 2 Gunslinging . | . . Exploded . | . . Melee . | . . Uniques/NPCs Destroyed . | . . Combat | -11 -10 -------- Run | Yrd Mat Hostile Shots Fired 42 | . 42 Missed 8 | . 8 Hits 34 | . 34 Projectile 34 | . 34 Damage Taken 485 | . 485 Core 321 | . 321 Absorbed by Shields . | . . Core Remaining (%) 100 | 100 . Volleys Fired 46 | 20 26 Largest 2 | 2 2 Hottest 60 | 60 40 Shots Fired 91 | 39 52 Gun 91 | 39 52 Cannon . | . . Launcher . | . . Special . | . . Kinetic 72 | 20 52 Thermal 19 | 19 . Explosive . | . . Electromagnetic . | . . Robot Hit Streak 11 | 11 11 Robot Miss Streak 3 | 3 2 Penetration Max . | . . Secondary Targets . | . . Shots Hit Robots 62 | 26 36 Core Hits 25 | 12 13 Critical Kills . | . . Critical Parts Destroyed . | . . Critical Strikes . | . . Melee Attacks 3 | . 3 Impact 3 | . 3 Slashing . | . . Piercing . | . . Sneak Attacks 2 | . 2 Combat Hostiles . | . . Follow-up Attacks . | . . Damage Inflicted 647 | 264 383 Guns 556 | 264 292 Cannons . | . . Explosions . | . . Melee 91 | . 91 Ramming . | . . Kinetic 396 | 104 292 Thermal 160 | 160 . Explosive . | . . Electromagnetic . | . . Impact 91 | . 91 Slashing . | . . Piercing . | . . Highest Corruption . | . . Average Corruption . | . . Corruption Purged . | . . Corruption Blocked . | . . Overload Shots . | . . Overflow Damage . | . . Projectiles . | . . Explosions . | . . Melee . | . . Knockbacks . | . . Impact . | . . Kinetic . | . . Secondary . | . . Self-Inflicted Damage 84 | . 84 Shots 1 | . 1 Rammed . | . . Targets Rammed . | . . Kicked . | . . Crushed . | . . Highest Temperature 40 | 40 1 Average Temperature 16 | 20 1 Received Heat Transfer 210 | . 210 Siege Activations . | . . Martial Activations . | . . Shielding Activations . | . . Robots Disrupted . | . . Combat Hostiles . | . . Robots Corrupted . | . . Combat Hostiles . | . . Parts Fried . | . . Impact Corruptions . | . . Robots Melted . | . . Combat Hostiles . | . . Parts Melted . | . . Heat Transferred 375 | 375 . Parts Sabotaged . | . . Parts Stolen . | . . Parts Stripped . | . . Power Chain Reactions . | . . Alert | -11 -10 ------- Run | Yrd Mat Maximum Alert Level . | . . Low Security (%) 100 | 100 100 Level 1 . | . . Level 2 . | . . Level 3 . | . . Level 4 . | . . Level 5 . | . . High Security . | . . Max Security . | . . Peak Influence 70 | 10 70 Initial 3 | . 3 Average 13 | 2 18 Influence Increases 203 | 40 163 Destroy 0b10 Robot/C 60 | . 60 Destroy 0b10 Robot/NC 65 | 40 25 Destroy Leader 22 | . 22 Successful Hack 14 | . 14 Disable Machine 30 | . 30 Destroy Structure 12 | . 12 Influence Decreases 125 | 35 90 Entered New Map 2 | . 2 Time Decay 123 | 35 88 Squads Dispatched 2 | . 2 Investigation . | . . Extermination . | . . Reinforcement 2 | . 2 Assault . | . . Garrison . | . . Intercept . | . . Searches Triggered . | . . Construction Impeded . | . . Haulers Reinforced . | . . Active Scanning Responses . | . . Cargo Convoy Interrupts . | . . Stealth | -11 -10 --------- Run | Yrd Mat Distress Signals . | . . Communications Jammed . | . . Distress Signals . | . . Times Spotted 9 | . 9 Peak Tracking Total 4 | . 4 Tactical Retreats . | . . Traps | -11 -10 ------- Run | Yrd Mat Traps Triggered 3 | . 3 Indirectly . | . . Trap Hack Attempts . | . . Triggered . | . . Disarmed . | . . Reprogrammed . | . . Reused . | . . Traps Extracted . | . . Installed . | . . Triggered . | . . Machines | -11 -10 ---------- Run | Yrd Mat Machines Disabled 2 | . 2 Max in Single Turn 2 | . 2 Machines Repaired . | . . Machines Dismantled . | . . Machines Sabotaged . | . . Overloaded Fab Kills . | . . Hacking | -11 -10 --------- Run | Yrd Mat Machines Accessed 2 | . 2 Terminals 1 | . 1 Fabricators . | . . Repair Stations . | . . Recycling Units 1 | . 1 Scanalyzers . | . . Garrison Access . | . . Total Hacks 4 | . 4 Successful 2 | . 2 Failed 2 | . 2 Catastrophic 1 | . 1 Database Lockouts . | . . Manual 3 | . 3 Terminals 3 | . 3 Fabricators . | . . Repair Stations . | . . Recycling Units 1 | . 1 Scanalyzers . | . . Garrison Access . | . . Terminal Hacks . | . . Fabricator Hacks . | . . Repair Station Hacks . | . . Recycling Unit Hacks 1 | . 1 Report Inventory 1 | . 1 Scanalyzer . | . . Garrison Access Hacks . | . . Unauthorized Hacks 1 | . 1 Terminals 1 | . 1 Botnet 1 | . 1 Fabricators . | . . Repair Stations . | . . Recycling Units . | . . Scanalyzers . | . . Garrison Access . | . . Data Cores Recovered . | . . Used . | . . Hacking Detections 1 | . 1 Full Trace Events . | . . Feedback Events . | . . Feedback Blocked . | . . Robot Schematics Acquired . | . . Robots Built . | . . Authchips . | . . Time . | . . Total Robot Build Rating . | . . Part Schematics Acquired . | . . Parts Built . | . . Authchips . | . . Time . | . . Total Part Build Rating . | . . Part Studies Acquired . | . . Parts Repaired . | . . Time . | . . Parts Recycled . | . . Recycled Matter . | . . Retrieved Matter . | . . Retrieved Components . | . . Parts Scanalyzed . | . . Part Schematics Acquired . | . . Parts Damaged . | . . Bothacking | -11 -10 ------------ Run | Yrd Mat Used RIF Installer . | . . Robots Hacked . | . . Non-combat . | . . Combat . | . . Robot Hacks Applied . | . . Relay Couplers Released . | . . Fabnet Peak Effective % . | . . Robots Rewired . | . . Allies Hacked . | . . Hacks Repelled . | . . Allies | -11 -10 -------- Run | Yrd Mat Total Allies . | . . Largest Group . | . . Highest-Rated Group . | . . Highest-Rated Ally . | . . Total Orders . | . . Ally Attacks . | . . Total Damage . | . . Kills . | . . Allies Corrupted . | . . Allies Melted . | . . Intel | -11 -10 ------- Run | Yrd Mat Active Infowar (turns) 304 | . 304 Seismic 304 | . 304 Robot Analysis Total . | . . Derelict Logs Recovered . | . . Drone Launches . | . . Drone Recoveries . | . . Exploration | -11 -10 ------------- Run | Yrd Mat Turns Passed 474 | 149 325 Spaces Moved 184 | 34 150 Core . | . . Treads . | . . Legs 119 | 34 85 Wheels 65 | . 65 Hover . | . . Flight . | . . Fastest Speed 100 | 120 100 Average Speed 134 | 120 137 Slowest Speed 175 | 120 175 Overloaded Moves . | . . Propulsion Burnouts . | . . Robots Hopped . | . . Potential Cave-ins . | . . Cave-ins Triggered . | . . Exploration Rate (%) 21 | 3 39 Regions Visited 1 Branch Regions . Pre-discovered Areas . | . . Known Exits Taken . | . . Unknown Exits Taken 1 | 1 . Scrap Searched . | . . Spaces Dug 1 | . 1 Terrain Destroyed 13 | . 13 Melee 1 | . 1 Projectile . | . . AOE 12 | . 12 Terrain Rammed . | . . Walls Destroyed . | . . Machines Disabled . | . . Actions | -11 -10 --------- Run | Yrd Mat Total 328 | 107 221 Wait 61 | 50 11 Move 183 | 33 150 Hop . | . . Pick Up 19 | 3 16 Fast Attach 3 | . 3 Attach 3 | . 3 Detach . | . . Swap 4 | . 4 Drop 6 | 1 5 Fire 46 | 20 26 Melee 3 | . 3 Ram . | . . Kick . | . . Crush . | . . Escape Stasis . | . . Rewire . | . . Trap . | . . Miscellaneous . | . . Route ------- -11/Scrapyard -10/Materials (discovered 2 exits: [*Mat] / [*Min]) History --------- Turn | Location | Event 14 | -11/Scrapyard | Discovered new exit (range 2) 150 | -11/Scrapyard | Entered Materials 293 | -10/Materials | Discovered new exit (range 3) 335 | -10/Materials | Build established: Mutant 361 | -10/Materials | Core integrity fell below 50% 387 | -10/Materials | Core integrity fell below 20% 423 | -10/Materials | Discovered new exit (range 10) 475 | -10/Materials | Destroyed self via exploding Fusion Modulator Last Messages --------------- 00383_ R-06 Scavenger collects Heat Sink. 00384_ K-01 Serf collects debris. 00387_ R-06 Scavenger collects Aluminum Leg. 00392_ K-01 Serf cleans the Hadron Collector. 00393_ G-34 Mercenary destroyed. 00397_ R-06 Scavenger collects Aluminum Leg. 00397_ U-05 Engineer lays Concrete. 00399_ R-06 Scavenger collects Heat Sink. 00403_ K-01 Serf collects debris. 00403_ R-06 Scavenger destroyed. 00403_ U-05 Engineer destroyed. 00406_ K-01 Serf collects debris. 00406_ Acquired 144 matter. 00406_ R-06 Scavenger collects Com. Wheel. 00411_ K-01 Serf collects debris. 00413_ R-06 Scavenger collects Heat Sink. 00414_ K-01 Serf collects debris. 00423_ EXIT=FOUND 00462_ A-02 Transporter destroyed. 00475_ Fusion Modulator explodes. Map ----- +----------------------------------------------------+ | ?????????????????????????????????????????????????? | | ?????????????????????????????????????????????????? | | ?????????????????????????????????????????????????? | | ?????????????????????????????????????????????????? | | ?????????????????????????????????????????????????? | | ??????????###????????????????????????????????????? | | ????????? ?????????????????????????????????????? | | ######### ??????????????????????????????????????? | | ???????????????????????????????????????? | | #????????????????????????????????????????? | | " #?#######????????????????????????????????? | | #?# =#???????######???????????????????? | | #?#"" #??????# T #??????????????????? | | #?#" #??????+ #??????????????????? | | ^ ### #??????# #??????????????????? | | !! *!#|! !#??????#gg #??????????????????? | | ! ! /%% #??????# #??????????????????? | | !! #! " #??????# #??????????????????? | | " # """ #??????# #??????????????????? | | " # """ #??????; #??????????????????? | | " # """ #??????# #??????????????????? | | " # #??????; #??????????????????? | | ############## #??????????????????? | | #????#"""""""; ???????????????????? | | #### ##???#" !"| "; ?????????????????????? | | ???# #####" ";;@;##????????????????????? | | ???# !!* #????????????????????? | | ???# !!%! < +?????????????????? | | ???# """"" !!! ####?????????????????? | | ???# """"" # ###+##????????????????????? | | ???# """"" #########?????????????????????????? | | #### #?????????????????????????????????? | | + #?????????????????????????????????? | | # ####### #?????????????????????????????????? | | # # # #?????????????????????????????????? | | + # # #?????????????????????????????????? | | # # # #?????????????????????????????????? | | ## # # #?????????????????????????????????? | | + """ # #?????????????????????????????????? | | ###### """ # #?????????????????????????????????? | | ?????# """ # #?????????????????????????????????? | | ############ #?????????????????????????????????? | | #????# #?????????????????????????????????? | | ###### #?????????????????????????????????? | | # = # #?????????????????????????????????? | | + " +?????????????????????????????????? | | # "T #?????????????????????????????????? | | # # #?????????????????????????????????? | | ## ## ########??#+#?????????????????????? | | ## ## #??# #??????#??????????????? | +----------------------------------------------------+ Best States ------------- Heat Dissipation 25 Energy Generation 10 Energy Capacity 250 Matter Stores 300 Matter Capacity 300 Sight Range 16 Terrain Scan Density 10 Evasion (%) 55 Item Schematics ----------------- None Robot Schematics ------------------ None Fabricated ------------ Nothing Repaired ---------- Nothing Studied --------- None Alien Tech Used ----------------- None Achievements -------------- None Challenges ------------ None Game ------ Seed LongswordGrapheneWall Manual? 0 Play Time 00:07:35 Cumulative 153.0 hours Start 2026.01.04 @ 15:52:31 End 2026.01.04 @ 15:56:51 Sessions 1 Manual Loads 0 Difficulty Rogue Special Mode None Game No. 263 Rogue 259 Adventurer 0 Explorer 4 Win Type - Total 0 Types 0/0/0/0/0/0/0/0/0/0 Lore% 19 Gallery% 40 Achievement% 25 Wizard Run 0 Options --------- Layout 1 ASCII 0 Keyboard 1 Movement Arrows Keybinds 0 Fullscreen 1 Font 32/SmallcapsGlow Map View 130x35 Zoom Use 0% Tactical HUD 1 Map Filters NONE Filters NONE Steam 1 RUN: a33e6301-e340-4273-a476-a0baa7fbce05